fUSD/lending_fUSD_20250513
["ID","MTS","AMOUNT","RATE_DAILY","PERIOD"]
[360961602,1747164645986,-400.0,0.00010999,2]
[360961603,1747164645999,-342.25079606,0.00010999,2]
[360961605,1747164646009,-278405.96735656,0.00010999,2]
[360961612,1747164646639,-4014.88866804,9.955e-05,2]
[360961613,1747164646652,-2003.75133196,9.955e-05,2]
[360961614,1747164646663,-356.85631804,0.00010997,2]
[360961615,1747164646675,-43.14368196,0.00010997,2]
[360961616,1747164646687,-300.10070257,0.00010999,2]
[360961617,1747164646699,-1363.86524228,0.00010999,2]
[360961618,1747164646712,-63267.40620345,0.00010999,2]
[360961619,1747164847988,-254.1,9.955e-05,2]
[360961620,1747164848013,-250.0,9.955e-05,2]
[360961621,1747164857302,-500.0,9.998e-05,2]
[360961622,1747164857335,-500.0,9.998e-05,2]
[360961623,1747164857369,-551.38528185,9.998e-05,2]
[360961624,1747164857401,-500.0,9.998e-05,2]
[360961625,1747164857434,-488.51471815,9.998e-05,2]
[360961626,1747165124403,150.0,1e-08,2]
[360961628,1747165403163,-300.0,0.00010104,2]
[360961629,1747165403191,-209.87745985,0.00010105,2]
[360961630,1747165403216,-255.65106097,0.00010105,2]
[360961631,1747165403248,-500.0,0.00010105,2]
[360961632,1747165403282,-500.0,0.00010105,2]
[360961633,1747165403312,-500.0,0.00010105,2]
[360961634,1747165403345,-500.0,0.00010105,2]
[360961635,1747165403375,-500.0,0.00010105,2]
[360961636,1747165403404,-500.0,0.00010105,2]
[360961637,1747165403434,-500.0,0.00010105,2]
[360961638,1747165403463,-500.0,0.00010105,2]
[360961639,1747165403493,-500.0,0.00010105,2]
[360961640,1747165403523,-500.0,0.00010105,2]
[360961641,1747165403553,-500.0,0.00010105,2]
[360961642,1747165403583,-500.0,0.00010105,2]
[360961643,1747165403614,-500.0,0.00010105,2]
[360961644,1747165403644,-500.0,0.00010105,2]
[360961645,1747165403676,-500.0,0.00010105,2]
[360961646,1747165403705,-500.0,0.00010105,2]
[360961647,1747165403735,-500.0,0.00010105,2]
[360961648,1747165403766,-500.0,0.00010105,2]
[360961649,1747165403795,-500.0,0.00010105,2]
[360961650,1747165403826,-500.0,0.00010105,2]
[360961651,1747165403857,-500.0,0.00010105,2]
[360961652,1747165403895,-500.0,0.00010105,2]
[360961653,1747165403925,-500.0,0.00010105,2]
[360961654,1747165403956,-500.0,0.00010105,2]
[360961655,1747165403984,-643.45052867,0.00010105,2]
[360961656,1747165404013,-500.0,0.00010105,2]
[360961657,1747165404042,-500.0,0.00010105,2]
[360961658,1747165404071,-500.0,0.00010105,2]
[360961659,1747165404100,-500.0,0.00010105,2]
[360961660,1747165404130,-500.0,0.00010105,2]
[360961661,1747165404159,-500.0,0.00010105,2]
[360961662,1747165404189,-500.0,0.00010105,2]
[360961663,1747165404219,-500.0,0.00010105,2]
[360961664,1747165404249,-500.0,0.00010105,2]
[360961665,1747165404282,-500.0,0.00010105,2]
[360961666,1747165404313,-500.0,0.00010105,2]
[360961667,1747165404341,-500.0,0.00010105,2]
[360961668,1747165404371,-500.0,0.00010105,2]
[360961669,1747165404399,-500.0,0.00010105,2]
[360961670,1747165404427,-500.0,0.00010105,2]
[360961671,1747165404454,-500.0,0.00010105,2]
[360961672,1747165404483,-500.0,0.00010105,2]
[360961673,1747165404513,-500.0,0.00010105,2]
[360961674,1747165404542,-500.0,0.00010105,2]
[360961675,1747165404571,-500.0,0.00010105,2]
[360961676,1747165404602,-500.0,0.00010105,2]
[360961677,1747165404630,-500.0,0.00010105,2]
[360961678,1747165404660,-500.0,0.00010105,2]
[360961679,1747165404688,-500.0,0.00010105,2]
[360961680,1747165404717,-500.0,0.00010105,2]
[360961681,1747165404747,-500.0,0.00010105,2]
[360961682,1747165404779,-500.0,0.00010105,2]
[360961683,1747165404808,-500.0,0.00010105,2]
[360961684,1747165404841,-500.0,0.00010105,2]
[360961685,1747165404874,-500.0,0.00010105,2]
[360961686,1747165404904,-500.0,0.00010105,2]
[360961687,1747165404931,-500.0,0.00010105,2]
[360961688,1747165404962,-500.0,0.00010105,2]
[360961689,1747165404991,-500.0,0.00010105,2]
[360961690,1747165405021,-500.0,0.00010105,2]
[360961691,1747165405050,-500.0,0.00010105,2]
[360961692,1747165405081,-500.0,0.00010105,2]
[360961693,1747165405112,-500.0,0.00010105,2]
[360961694,1747165405142,-500.0,0.00010105,2]
[360961695,1747165405173,-500.0,0.00010105,2]
[360961696,1747165405202,-500.0,0.00010105,2]
[360961697,1747165405231,-500.0,0.00010105,2]
[360961698,1747165405263,-500.0,0.00010105,2]
[360961699,1747165405294,-500.0,0.00010105,2]
[360961700,1747165405325,-500.0,0.00010105,2]
[360961701,1747165405356,-500.0,0.00010105,2]
[360961702,1747165405387,-600.0,0.00010105,2]
[360961703,1747165405417,-500.0,0.00010105,2]
[360961704,1747165405447,-500.0,0.00010105,2]
[360961705,1747165405477,-500.0,0.00010105,2]
[360961706,1747165405510,-500.0,0.00010105,2]
[360961707,1747165405540,-500.0,0.00010105,2]
[360961708,1747165405785,-500.0,0.00010105,2]
[360961709,1747165405817,-500.0,0.00010105,2]
[360961710,1747165405851,-200.0,0.00010105,2]
[360961711,1747165462343,-153.06415769,0.00010085,2]
[360961712,1747165462374,-300.0,0.00010105,2]
[360961713,1747165462405,-535.21524228,0.00010105,2]
[360961714,1747165462435,-535.21524228,0.00010105,2]
[360961715,1747165462463,-535.21524228,0.00010105,2]
[360961716,1747165462492,-535.21524228,0.00010105,2]
[360961717,1747165462520,-535.21524228,0.00010105,2]
[360961718,1747165462550,-535.21524228,0.00010105,2]
[360961719,1747165462579,-535.21524228,0.00010105,2]
[360961720,1747165462610,-535.21524228,0.00010105,2]
[360961721,1747165462640,-535.21524228,0.00010105,2]
[360961722,1747165462668,-535.21524228,0.00010105,2]
[360961723,1747165462697,-535.21524228,0.00010105,2]
[360961724,1747165462725,-535.21524228,0.00010105,2]
[360961725,1747165462753,-535.21524228,0.00010105,2]
[360961726,1747165462782,-535.21524228,0.00010105,2]
[360961727,1747165462815,-535.21524228,0.00010105,2]
[360961728,1747165462843,-535.21524228,0.00010105,2]
[360961729,1747165462874,-535.21524228,0.00010105,2]
[360961730,1747165462903,-535.21524228,0.00010105,2]
[360961731,1747165462931,-535.21524228,0.00010105,2]
[360961732,1747165462961,-535.21524228,0.00010105,2]
[360961733,1747165462988,-535.21524228,0.00010105,2]
[360961734,1747165463016,-535.21524228,0.00010105,2]
[360961735,1747165463045,-535.21524228,0.00010105,2]
[360961736,1747165463078,-382.15108459,0.00010105,2]
[360961737,1747165567121,401.31168601,0.00010105,5]
[360961738,1747165579533,-500.0,0.00010106,2]
[360961739,1747165579565,-500.0,0.00010106,2]
[360961740,1747165579597,-500.0,0.00010106,2]
[360961741,1747165579628,-500.0,0.00010106,2]
[360961742,1747165579663,-500.0,0.00010106,2]
[360961743,1747165579697,-500.0,0.00010106,2]
[360961744,1747165579730,-500.0,0.00010106,2]
[360961745,1747165579763,-500.0,0.00010106,2]
[360961746,1747165579797,-500.0,0.00010106,2]
[360961747,1747165579830,-500.0,0.00010106,2]
[360961748,1747165579861,-500.0,0.00010106,2]
[360961749,1747165579893,-196.61937626,0.00010106,2]
[360961750,1747165579927,-500.0,0.00010106,2]
[360961751,1747165579952,-751.56,0.00010107,2]
[360961752,1747165579976,-362.3,0.00010151,2]
[360961753,1747165580003,-178.95574268,0.00010185,2]
[360961754,1747165580028,-483.0,0.00010185,2]
[360961755,1747165580052,-300.0,0.00010185,2]
[360961756,1747165580078,-23727.56488106,0.00010186,2]
[360961757,1747165601653,-185.83,0.00010056,2]
[360961758,1747165606220,-1000.0,0.00010069,2]
[360961759,1747165611508,172.1,8.055e-05,2]
[360961762,1747165739708,1686.98,8.219e-05,2]
[360961769,1747165831666,-206.02,0.0001006,2]
[360961770,1747165831675,-172.43511894,0.00010186,2]
[360961771,1747165831685,-165.51,0.00010381,2]
[360961772,1747165831694,-1686.98,0.00010479,2]
[360961773,1747165831703,-500.0,0.00010856,2]
[360961774,1747165831713,-500.0,0.00010856,2]
[360961775,1747165831722,-500.0,0.00010856,2]
[360961776,1747165831732,-500.0,0.00010856,2]
[360961777,1747165831741,-500.0,0.00010856,2]
[360961778,1747165831750,-500.0,0.00010856,2]
[360961779,1747165831759,-432.39397619,0.00010856,2]
[360961780,1747165831769,-500.0,0.00010856,2]
[360961781,1747165831778,-500.0,0.00010856,2]
[360961782,1747165831787,-500.0,0.00010856,2]
[360961783,1747165831796,-500.0,0.00010856,2]
[360961784,1747165831805,-31.79202464,0.00010856,2]
[360961785,1747165831924,-468.20797536,0.00010856,2]
[360961786,1747165831934,-0.24064884,0.00010858,2]
[360961787,1747165832041,-3799.02275116,0.00010858,2]
[360961788,1747165832051,-2925.2057,0.00010858,2]
[360961789,1747165832063,-959.3808,0.00010896,2]
[360961791,1747165832073,-172.409,0.00010897,2]
[360961793,1747165832083,-3114.166,0.00010897,2]
[360961795,1747165832092,-150.0,0.00010897,2]
[360961796,1747165832102,-555.66494491,0.00010898,2]
[360961798,1747165832113,-56347.79305509,0.00010898,2]
[360961800,1747165832123,-276.79,0.00010898,2]
[360961802,1747165832134,-9753.7252,0.00010899,2]
[360961803,1747165832144,-164.02476892,0.000109,2]
[360961805,1747165832153,-33028.36899478,0.000109,2]
[360961807,1747165832162,-169.64711926,0.000109,2]
[360961809,1747165832171,-484.05,0.00010958,2]
[360961811,1747165832181,-88.67850442,0.00010958,2]
[360961812,1747165832205,-1499.21515664,0.00010958,2]
[360961813,1747165832216,-431.41633894,0.00010958,2]
[360961814,1747165832226,-57.44976519,0.00010958,2]
[360961815,1747165832237,-342.55023481,0.00010958,2]
[360961817,1747165832247,-400.0,0.00010958,2]
[360961819,1747165832257,-0.26496924,0.00010958,2]
[360961843,1747165837588,-261.92,0.00010958,2]
[360961844,1747165837642,-931.82503076,0.00010958,2]
[360961845,1747165837651,-400.0,0.00010958,2]
[360961846,1747165837660,-400.0,0.00010958,2]
[360961847,1747165837669,-400.0,0.00010958,2]
[360961848,1747165837679,-1065.31,0.00010958,2]
[360961849,1747165837688,-2000.34,0.00010958,2]
[360961850,1747165837697,-400.0,0.00010958,2]
[360961851,1747165837707,-400.0,0.00010958,2]
[360961852,1747165837716,-1329.24,0.00010958,2]
[360961853,1747165837726,-150.0,0.00010959,2]
[360961854,1747165837735,-500.0,0.00010959,2]
[360961855,1747165837744,-500.0,0.00010959,2]
[360961856,1747165837753,-500.0,0.00010959,2]
[360961857,1747165837763,-500.0,0.00010959,2]
[360961858,1747165837772,-500.0,0.00010959,2]
[360961859,1747165837781,-500.0,0.00010959,2]
[360961860,1747165837792,-500.0,0.00010959,2]
[360961861,1747165837814,-437.48545758,0.00010959,2]
[360961862,1747165837839,-62.51454242,0.00010959,2]
[360961863,1747165837861,-500.0,0.00010959,2]
[360961864,1747165837883,-500.0,0.00010973,2]
[360961865,1747165837904,-500.0,0.00010973,2]
[360961867,1747165837927,-560.30869169,0.00010973,2]
[360961868,1747165837949,-500.0,0.00010973,2]
[360961869,1747165837970,-461.48676589,0.00010973,2]
[360961870,1747165837996,-115.97588855,0.00010973,2]
[360961871,1747165838015,-500.0,0.00010973,2]
[360961873,1747165838025,-500.0,0.00010973,2]
[360961874,1747165838033,-500.0,0.00010973,2]
[360961875,1747165838042,-505.279035,0.00010973,2]
[360961876,1747165838051,-500.0,0.00010973,2]
[360961877,1747165838060,-500.0,0.00010973,2]
[360961878,1747165838069,-500.0,0.00010973,2]
[360961879,1747165838078,-500.0,0.00010973,2]
[360961880,1747165838087,-6878.5106302,0.00010992,2]
[360961881,1747165838096,-400.0,0.00010995,2]
[360961882,1747165838105,-492.6109713,0.00010996,2]
[360961883,1747165838116,-116.3190287,0.00010996,2]
[360961884,1747165838127,-1201.06,0.00010996,2]
[360961885,1747165838138,-400.0,0.00010996,2]
[360961886,1747165838147,-400.0,0.00010996,2]
[360961887,1747165838157,-457.94,0.00010996,2]
[360961888,1747165838166,-414.60420689,0.00010996,2]
[360961889,1747165838175,-400.0,0.00010996,2]
[360961890,1747165838184,-400.0,0.00010996,2]
[360961891,1747165838194,-400.0,0.00010996,2]
[360961892,1747165838203,-400.0,0.00010996,2]
[360961893,1747165838212,-1219.4,0.00010996,2]
[360961894,1747165838222,-400.0,0.00010996,2]
[360961895,1747165838231,-400.0,0.00010996,2]
[360961896,1747165838240,-539.88,0.00010996,2]
[360961897,1747165838249,-400.0,0.00010996,2]
[360961898,1747165838259,-400.0,0.00010996,2]
[360961899,1747165838268,-400.0,0.00010996,2]
[360961900,1747165838279,-162.844532,0.00010996,2]
[360961901,1747165838289,-400.0,0.00010996,2]
[360961902,1747165838299,-400.0,0.00010996,2]
[360961903,1747165838309,-400.0,0.00010996,2]
[360961904,1747165838318,-400.0,0.00010996,2]
[360961905,1747165838327,-400.0,0.00010996,2]
[360961906,1747165838337,-1021.21,0.00010996,2]
[360961907,1747165838347,-400.0,0.00010996,2]
[360961908,1747165838356,-400.0,0.00010996,2]
[360961909,1747165838365,-553.48,0.00010996,2]
[360961910,1747165838375,-2418.284548,0.00010996,2]
[360961911,1747165838386,-400.0,0.00010996,2]
[360961912,1747165838396,-400.0,0.00010996,2]
[360961913,1747165838406,-400.0,0.00010996,2]
[360961914,1747165838415,-400.0,0.00010996,2]
[360961915,1747165838425,-400.0,0.00010996,2]
[360961916,1747165838434,-400.0,0.00010996,2]
[360961917,1747165838443,-400.0,0.00010996,2]
[360961918,1747165838452,-400.0,0.00010996,2]
[360961919,1747165838462,-738.25,0.00010996,2]
[360961920,1747165838471,-400.0,0.00010996,2]
[360961921,1747165838481,-1530.25,0.00010996,2]
[360961922,1747165838490,-595.32,0.00010996,2]
[360961923,1747165838499,-400.0,0.00010996,2]
[360961924,1747165838509,-400.0,0.00010996,2]
[360961925,1747165838519,-400.0,0.00010996,2]
[360961926,1747165838529,-400.0,0.00010996,2]
[360961927,1747165838539,-1062.2,0.00010996,2]
[360961928,1747165838549,-400.0,0.00010996,2]
[360961929,1747165838558,-538.15,0.00010996,2]
[360961930,1747165838568,-400.0,0.00010996,2]
[360961931,1747165838577,-459.04,0.00010996,2]
[360961932,1747165838586,-534.53,0.00010996,2]
[360961933,1747165838596,-1056.05,0.00010996,2]
[360961934,1747165838605,-400.0,0.00010996,2]
[360961935,1747165838615,-1453.53,0.00010996,2]
[360961936,1747165838624,-400.0,0.00010996,2]
[360961937,1747165838635,-724.71,0.00010996,2]
[360961938,1747165838644,-717.08,0.00010996,2]
[360961939,1747165838653,-400.0,0.00010996,2]
[360961940,1747165838663,-400.0,0.00010996,2]
[360961941,1747165838672,-616.27,0.00010996,2]
[360961942,1747165838682,-400.0,0.00010996,2]
[360961943,1747165838692,-482.29,0.00010996,2]
[360961944,1747165838924,-400.0,0.00010996,2]
[360961945,1747165838934,-400.0,0.00010996,2]
[360961946,1747165838944,-400.0,0.00010996,2]
[360961947,1747165838953,-400.0,0.00010996,2]
[360961948,1747165838963,-848.73,0.00010996,2]
[360961949,1747165838973,-400.0,0.00010996,2]
[360961950,1747165838986,-400.0,0.00010996,2]
[360961951,1747165838995,-703.79,0.00010996,2]
[360961952,1747165839004,-454.3,0.00010996,2]
[360961953,1747165839014,-400.0,0.00010996,2]
[360961954,1747165839024,-400.0,0.00010996,2]
[360961955,1747165839034,-400.0,0.00010996,2]
[360961956,1747165839043,-522.7,0.00010996,2]
[360961957,1747165839054,-400.0,0.00010996,2]
[360961958,1747165839063,-488.34,0.00010996,2]
[360961959,1747165839073,-400.0,0.00010996,2]
[360961960,1747165839082,-400.0,0.00010996,2]
[360961961,1747165839092,-400.0,0.00010996,2]
[360961962,1747165839101,-400.0,0.00010996,2]
[360961963,1747165839110,-449.85,0.00010996,2]
[360961964,1747165839119,-400.0,0.00010996,2]
[360961965,1747165839129,-1047.6,0.00010996,2]
[360961966,1747165839142,-400.0,0.00010996,2]
[360961967,1747165839151,-400.0,0.00010996,2]
[360961968,1747165839160,-400.0,0.00010996,2]
[360961969,1747165839169,-400.0,0.00010996,2]
[360961970,1747165839179,-400.0,0.00010996,2]
[360961971,1747165839189,-275.790491,0.00010996,2]
[360961972,1747165839198,-400.0,0.00010996,2]
[360961973,1747165839210,-400.0,0.00010996,2]
[360961974,1747165839220,-400.0,0.00010996,2]
[360961975,1747165839230,-400.0,0.00010996,2]
[360961976,1747165839240,-400.0,0.00010996,2]
[360961977,1747165839250,-739.15,0.00010996,2]
[360961978,1747165839260,-400.0,0.00010996,2]
[360961979,1747165839270,-400.0,0.00010996,2]
[360961980,1747165839279,-400.0,0.00010996,2]
[360961981,1747165839289,-400.0,0.00010996,2]
[360961982,1747165839298,-400.0,0.00010996,2]
[360961984,1747165839308,-400.0,0.00010996,2]
[360961985,1747165839317,-400.0,0.00010996,2]
[360961986,1747165839326,-514.23,0.00010996,2]
[360961987,1747165839336,-400.0,0.00010996,2]
[360961988,1747165839345,-400.0,0.00010996,2]
[360961989,1747165839355,-400.0,0.00010996,2]
[360961990,1747165839365,-400.0,0.00010996,2]
[360961991,1747165839375,-400.0,0.00010996,2]
[360961992,1747165839386,-837.69,0.00010996,2]
[360961993,1747165839395,-400.0,0.00010996,2]
[360961994,1747165839405,-933.25,0.00010996,2]
[360961995,1747165839416,-665.55,0.00010996,2]
[360961996,1747165839425,-400.0,0.00010996,2]
[360961997,1747165839435,-400.0,0.00010996,2]
[360961998,1747165839444,-939.78,0.00010996,2]
[360961999,1747165839454,-1697.27,0.00010996,2]
[360962000,1747165839463,-868.83,0.00010996,2]
[360962002,1747165839473,-400.0,0.00010996,2]
[360962003,1747165839483,-400.0,0.00010996,2]
[360962005,1747165839493,-400.0,0.00010996,2]
[360962007,1747165839502,-400.0,0.00010996,2]
[360962008,1747165839512,-413.04,0.00010996,2]
[360962009,1747165839522,-400.0,0.00010996,2]
[360962011,1747165839531,-400.0,0.00010996,2]
[360962013,1747165839541,-400.0,0.00010996,2]
[360962014,1747165839550,-400.0,0.00010996,2]
[360962015,1747165839560,-400.0,0.00010996,2]
[360962016,1747165839569,-400.0,0.00010996,2]
[360962017,1747165839578,-400.0,0.00010996,2]
[360962018,1747165839587,-400.0,0.00010996,2]
[360962019,1747165839596,-618.77,0.00010996,2]
[360962020,1747165839606,-400.0,0.00010996,2]
[360962021,1747165839615,-198.82757041,0.00010996,2]
[360962022,1747165839658,-241.69242959,0.00010996,2]
[360962023,1747165839668,-692.05113292,0.00010996,2]
[360962024,1747165839683,-2382.08886708,0.00010996,2]
[360962025,1747165839693,-400.0,0.00010996,2]
[360962026,1747165839703,-400.0,0.00010996,2]
[360962027,1747165839712,-400.0,0.00010996,2]
[360962028,1747165839721,-400.0,0.00010996,2]
[360962029,1747165839731,-400.0,0.00010996,2]
[360962030,1747165839741,-595.21,0.00010996,2]
[360962031,1747165839750,-400.0,0.00010996,2]
[360962032,1747165839760,-400.0,0.00010996,2]
[360962033,1747165839769,-400.0,0.00010996,2]
[360962034,1747165839779,-400.0,0.00010996,2]
[360962035,1747165839788,-162.844533,0.00010996,2]
[360962036,1747165839797,-400.0,0.00010996,2]
[360962037,1747165839807,-400.0,0.00010996,2]
[360962038,1747165839816,-400.0,0.00010996,2]
[360962039,1747165839826,-400.0,0.00010996,2]
[360962040,1747165839835,-400.0,0.00010996,2]
[360962041,1747165839845,-521.20665863,0.00010996,2]
[360962042,1747165839854,-400.0,0.00010996,2]
[360962043,1747165839863,-5002.52,0.00010996,2]
[360962044,1747165839873,-400.0,0.00010996,2]
[360962045,1747165839882,-400.0,0.00010996,2]
[360962046,1747165839894,-472.22,0.00010996,2]
[360962047,1747165839904,-400.0,0.00010996,2]
[360962048,1747165839913,-324.62627174,0.00010996,2]
[360962049,1747165839928,-75.37372826,0.00010996,2]
[360962050,1747165839938,-400.0,0.00010996,2]
[360962051,1747165839947,-400.0,0.00010996,2]
[360962052,1747165839957,-400.0,0.00010996,2]
[360962053,1747165839966,-400.0,0.00010996,2]
[360962054,1747165839979,-627.14,0.00010996,2]
[360962055,1747165839988,-400.0,0.00010996,2]
[360962056,1747165839997,-400.0,0.00010996,2]
[360962057,1747165840007,-400.0,0.00010996,2]
[360962058,1747165840016,-400.0,0.00010996,2]
[360962059,1747165840027,-10.64852326,0.00010996,2]
[360962064,1747165840214,-389.35147674,0.00010996,2]
[360962066,1747165840225,-438.67,0.00010996,2]
[360962068,1747165840234,-400.0,0.00010996,2]
[360962070,1747165840244,-467.89,0.00010996,2]
[360962072,1747165840260,-1000.0,0.00010996,2]
[360962074,1747165840282,-472.0,0.00010996,2]
[360962076,1747165840303,-836.73,0.00010996,2]
[360962078,1747165840324,-400.0,0.00010996,2]
[360962079,1747165840345,-400.0,0.00010996,2]
[360962080,1747165840367,-170.759146,0.00010996,2]
[360962081,1747165840389,-400.0,0.00010996,2]
[360962082,1747165840411,-907.01,0.00010996,2]
[360962084,1747165840431,-400.0,0.00010996,2]
[360962086,1747165840453,-400.0,0.00010996,2]
[360962088,1747165840476,-450.77,0.00010996,2]
[360962090,1747165840488,-2063.26,0.00010996,2]
[360962092,1747165840498,-400.0,0.00010996,2]
[360962094,1747165840507,-400.0,0.00010996,2]
[360962096,1747165840517,-400.0,0.00010996,2]
[360962098,1747165840526,-400.0,0.00010996,2]
[360962100,1747165840535,-500.0,0.00010996,2]
[360962102,1747165840544,-400.0,0.00010996,2]
[360962104,1747165840554,-400.0,0.00010996,2]
[360962106,1747165840563,-400.0,0.00010996,2]
[360962108,1747165840572,-432.86051737,0.00010996,2]
[360962110,1747165840582,-400.0,0.00010996,2]
[360962112,1747165840591,-400.0,0.00010996,2]
[360962114,1747165840600,-748.79,0.00010996,2]
[360962116,1747165840609,-400.0,0.00010996,2]
[360962118,1747165840619,-523.34574334,0.00010996,2]
[360962120,1747165840629,-561.98,0.00010996,2]
[360962122,1747165840639,-402.29858083,0.00010996,2]
[360962124,1747165840648,-400.0,0.00010996,2]
[360962126,1747165840657,-400.0,0.00010996,2]
[360962128,1747165840666,-18789.95447972,0.00010997,2]
[360962160,1747165840957,-18978.47968629,0.00010997,2]
[360962162,1747165840967,-400.0,0.00010997,2]
[360962164,1747165840980,-400.0,0.00010997,2]
[360962166,1747165840990,-400.0,0.00010997,2]
[360962168,1747165840999,-400.0,0.00010997,2]
[360962169,1747165841008,-400.0,0.00010997,2]
[360962171,1747165841018,-400.0,0.00010997,2]
[360962173,1747165841027,-400.0,0.00010997,2]
[360962175,1747165841036,-400.0,0.00010997,2]
[360962177,1747165841046,-400.0,0.00010997,2]
[360962179,1747165841057,-400.0,0.00010997,2]
[360962181,1747165841067,-400.0,0.00010997,2]
[360962183,1747165841075,-400.0,0.00010997,2]
[360962185,1747165841084,-516.94,0.00010997,2]
[360962187,1747165841094,-400.0,0.00010997,2]
[360962189,1747165841103,-400.0,0.00010997,2]
[360962191,1747165841112,-400.0,0.00010997,2]
[360962193,1747165841121,-708.09,0.00010997,2]
[360962195,1747165841130,-400.0,0.00010997,2]
[360962197,1747165841139,-400.0,0.00010997,2]
[360962199,1747165841149,-400.0,0.00010997,2]
[360962201,1747165841158,-400.0,0.00010997,2]
[360962203,1747165841167,-400.0,0.00010997,2]
[360962205,1747165841176,-400.0,0.00010997,2]
[360962207,1747165841185,-400.0,0.00010997,2]
[360962209,1747165841195,-400.0,0.00010997,2]
[360962211,1747165841204,-400.0,0.00010997,2]
[360962213,1747165841213,-400.0,0.00010997,2]
[360962215,1747165841222,-400.0,0.00010997,2]
[360962217,1747165841231,-400.0,0.00010997,2]
[360962219,1747165841242,-400.0,0.00010997,2]
[360962221,1747165841251,-400.0,0.00010997,2]
[360962223,1747165841261,-400.0,0.00010997,2]
[360962225,1747165841271,-400.0,0.00010997,2]
[360962227,1747165841280,-400.0,0.00010997,2]
[360962229,1747165841289,-294.53,0.00010997,2]
[360962231,1747165841298,-532.77,0.00010997,2]
[360962233,1747165841308,-400.0,0.00010997,2]
[360962235,1747165841317,-400.0,0.00010997,2]
[360962237,1747165841326,-400.0,0.00010997,2]
[360962239,1747165841335,-400.0,0.00010997,2]
[360962241,1747165841345,-400.0,0.00010997,2]
[360962243,1747165841353,-400.0,0.00010997,2]
[360962245,1747165841363,-400.0,0.00010997,2]
[360962247,1747165841374,-400.0,0.00010997,2]
[360962249,1747165841384,-400.0,0.00010997,2]
[360962251,1747165841395,-400.0,0.00010997,2]
[360962253,1747165841404,-400.0,0.00010997,2]
[360962255,1747165841414,-400.0,0.00010997,2]
[360962257,1747165841423,-400.0,0.00010997,2]
[360962259,1747165841433,-400.0,0.00010997,2]
[360962261,1747165841442,-400.0,0.00010997,2]
[360962263,1747165841452,-413.69,0.00010997,2]
[360962265,1747165841461,-400.0,0.00010997,2]
[360962267,1747165841470,-99.68311371,0.00010997,2]
[360962272,1747165841651,-300.31688629,0.00010997,2]
[360962273,1747165841662,-400.0,0.00010997,2]
[360962274,1747165841671,-400.0,0.00010997,2]
[360962275,1747165841681,-400.0,0.00010997,2]
[360962276,1747165841691,-400.0,0.00010997,2]
[360962277,1747165841700,-400.0,0.00010997,2]
[360962278,1747165841710,-400.0,0.00010997,2]
[360962279,1747165841720,-400.0,0.00010997,2]
[360962280,1747165841729,-400.0,0.00010997,2]
[360962281,1747165841738,-400.0,0.00010997,2]
[360962282,1747165841748,-624.6,0.00010997,2]